[Event "Kvibergspelen September 2019"]
[Site "Prioritet Serneke Arena, Krutvagen 2, Gothenburg, Sweden"]
[Date "2019.09.27"]
[Round "3.7"]
[White "Johansson, Gunnar"]
[Black "Le, Quang Long"]
[Result "1/2-1/2"]
[TimeControl "15 minutes + 5 seconds per move from move one (Round 1 - 4) / 90 minutes + 30 seconds per move from move one (Round 5 - 8)"]
[BlackTitle "IM"]
[WhiteFideId "1703501"]
[BlackFideId "12401749"]
[WhiteElo "2183"]
[BlackElo "2415"]

1. d4 {[%clk 00:15:07]} {[%emt 00:00:02]} Nf6 {[%clk 00:14:54]} {[%emt
00:00:16]} 2. c4 {[%clk 00:15:10]} {[%emt 00:00:03]} c5 {[%clk 00:14:56]}
{[%emt 00:00:02]} 3. d5 {[%clk 00:15:13]} {[%emt 00:00:03]} e6 {[%clk
00:15:00]} {[%emt 00:00:01]} 4. Nc3 {[%clk 00:15:16]} {[%emt 00:00:02]} exd5
{[%clk 00:15:03]} {[%emt 00:00:01]} 5. cxd5 {[%clk 00:15:20]} {[%emt 00:00:02]}
d6 {[%clk 00:15:06]} {[%emt 00:00:01]} 6. e4 {[%clk 00:15:23]} {[%emt
00:00:02]} a6 {[%clk 00:15:10]} {[%emt 00:00:02]} 7. a4 {[%clk 00:15:26]}
{[%emt 00:00:02]} g6 {[%clk 00:15:14]} {[%emt 00:00:01]} 8. h3 {[%clk
00:15:28]} {[%emt 00:00:02]} Bg7 {[%clk 00:15:17]} {[%emt 00:00:01]} 9. Nf3
{[%clk 00:15:31]} {[%emt 00:00:02]} O-O {[%clk 00:15:19]} {[%emt 00:00:02]} 10.
Bd3 {[%clk 00:15:35]} {[%emt 00:00:02]} Nbd7 {[%clk 00:15:03]} {[%emt
00:00:21]} 11. O-O {[%clk 00:15:36]} {[%emt 00:00:03]} Qe7 {[%clk 00:14:29]}
{[%emt 00:00:39]} 12. Re1 {[%clk 00:15:38]} {[%emt 00:00:03]} Ne8 {[%clk
00:14:14]} {[%emt 00:00:19]} 13. Rb1 {[%clk 00:14:49]} {[%emt 00:00:55]} Nc7
{[%clk 00:13:52]} {[%emt 00:00:27]} 14. Bg5 {[%clk 00:14:22]} {[%emt 00:00:31]}
f6 {[%clk 00:13:56]} {[%emt 00:00:02]} 15. Be3 {[%clk 00:14:03]} {[%emt
00:00:24]} Ne5 {[%clk 00:13:37]} {[%emt 00:00:24]} 16. Nxe5 {[%clk 00:13:09]}
{[%emt 00:00:59]} fxe5 {[%clk 00:13:06]} {[%emt 00:00:36]} 17. a5 {[%clk
00:12:46]} {[%emt 00:00:28]} Ne8 {[%clk 00:11:12]} {[%emt 00:01:58]} 18. b4
{[%clk 00:12:39]} {[%emt 00:00:13]} c4 {[%clk 00:09:39]} {[%emt 00:01:37]} 19.
Bxc4 {[%clk 00:11:41]} {[%emt 00:01:03]} Bxh3 {[%clk 00:08:44]} {[%emt
00:00:59]} 20. gxh3 {[%clk 00:10:49]} {[%emt 00:00:57]} Rc8 {[%clk 00:08:48]}
{[%emt 00:00:01]} 21. Qb3 {[%clk 00:10:07]} {[%emt 00:00:48]} Qc7 {[%clk
00:08:51]} {[%emt 00:00:02]} 22. Be2 {[%clk 00:09:24]} {[%emt 00:00:47]} Qxc3
{[%clk 00:08:54]} {[%emt 00:00:02]} 23. Qxc3 {[%clk 00:09:24]} {[%emt
00:00:05]} Rxc3 {[%clk 00:08:57]} {[%emt 00:00:02]} 24. Rec1 {[%clk 00:09:26]}
{[%emt 00:00:03]} Ra3 {[%clk 00:08:40]} {[%emt 00:00:22]} 25. b5 {[%clk
00:05:20]} {[%emt 00:04:11]} Rxa5 {[%clk 00:08:04]} {[%emt 00:00:41]} 26. bxa6
{[%clk 00:05:23]} {[%emt 00:00:02]} bxa6 {[%clk 00:08:08]} {[%emt 00:00:01]} 27.
Rb6 {[%clk 00:05:27]} {[%emt 00:00:01]} Nf6 {[%clk 00:07:39]} {[%emt 00:00:34]}
28. Rxd6 {[%clk 00:05:13]} {[%emt 00:00:19]} Nxe4 {[%clk 00:05:54]} {[%emt
00:01:49]} 29. Rxa6 {[%clk 00:05:15]} {[%emt 00:00:03]} Rxa6 {[%clk 00:05:44]}
{[%emt 00:00:15]} 30. Bxa6 {[%clk 00:05:18]} {[%emt 00:00:02]} Ra8 {[%clk
00:04:32]} {[%emt 00:01:17]} 31. Rc6 {[%clk 00:04:37]} {[%emt 00:00:46]} Bf8
{[%clk 00:04:25]} {[%emt 00:00:12]} 32. Re6 {[%clk 00:03:36]} {[%emt 00:01:06]}
Nc5 {[%clk 00:03:27]} {[%emt 00:01:03]} 33. Bxc5 {[%clk 00:03:36]} {[%emt
00:00:05]} Bxc5 {[%clk 00:03:30]} {[%emt 00:00:02]} 34. Rc6 {[%clk 00:03:33]}
{[%emt 00:00:08]} Bb4 {[%clk 00:02:51]} {[%emt 00:00:44]} 35. Rc8+ {[%clk
00:03:35]} {[%emt 00:00:03]} Rxc8 {[%clk 00:02:53]} {[%emt 00:00:03]} 36. Bxc8
{[%clk 00:03:39]} {[%emt 00:00:02]} Kf7 {[%clk 00:02:41]} {[%emt 00:00:17]} 37.
f3 {[%clk 00:03:34]} {[%emt 00:00:10]} Kf6 {[%clk 00:02:38]} {[%emt 00:00:07]}
38. Kf2 {[%clk 00:03:33]} {[%emt 00:00:06]} Bc5+ {[%clk 00:02:22]} {[%emt
00:00:21]} 1/2-1/2

[Event "Kvibergspelen September 2019"]
[Site "Prioritet Serneke Arena, Krutvagen 2, Gothenburg, Sweden"]
[Date "2019.09.27"]
[Round "3.8"]
[White "Bruaset, Eivind"]
[Black "Pantzar, Milton"]
[Result "1/2-1/2"]
[TimeControl "15 minutes + 5 seconds per move from move one (Round 1 - 4) / 90 minutes + 30 seconds per move from move one (Round 5 - 8)"]
[BlackTitle "FM"]
[WhiteFideId "1515276"]
[BlackFideId "1721003"]
[WhiteElo "2181"]
[BlackElo "2376"]

1. e4 {[%clk 00:15:09]} e5 {[%clk 00:15:08]} {[%emt 00:00:02]} 2. Nf3 {[%clk
00:15:12]} {[%emt 00:00:02]} Nc6 {[%clk 00:15:11]} {[%emt 00:00:02]} 3. d4
{[%clk 00:15:15]} {[%emt 00:00:02]} exd4 {[%clk 00:15:03]} {[%emt 00:00:13]} 4.
Bc4 {[%clk 00:15:18]} {[%emt 00:00:02]} Nf6 {[%clk 00:14:54]} {[%emt 00:00:13]}
5. e5 {[%clk 00:15:19]} {[%emt 00:00:04]} Ng4 {[%clk 00:14:42]} {[%emt
00:00:17]} 6. Bxf7+ {[%clk 00:13:50]} {[%emt 00:01:34]} Kxf7 {[%clk 00:14:43]}
{[%emt 00:00:04]} 7. Ng5+ {[%clk 00:13:52]} {[%emt 00:00:02]} Kg8 {[%clk
00:13:51]} {[%emt 00:00:57]} 8. Qxg4 {[%clk 00:13:53]} {[%emt 00:00:04]} h6
{[%clk 00:12:22]} {[%emt 00:01:34]} 9. Nf3 {[%clk 00:09:28]} {[%emt 00:04:30]}
d6 {[%clk 00:11:56]} {[%emt 00:00:31]} 10. Qe4 {[%clk 00:08:31]} {[%emt
00:01:01]} dxe5 {[%clk 00:11:14]} {[%emt 00:00:47]} 11. Nxe5 {[%clk 00:07:00]}
{[%emt 00:01:36]} Nxe5 {[%clk 00:09:21]} {[%emt 00:01:58]} 12. Qxe5 {[%clk
00:06:59]} {[%emt 00:00:04]} Qd6 {[%clk 00:09:15]} {[%emt 00:00:12]} 13. Bf4
{[%clk 00:05:37]} {[%emt 00:01:27]} Qxe5+ {[%clk 00:06:56]} {[%emt 00:02:25]}
14. Bxe5 {[%clk 00:05:41]} {[%emt 00:00:01]} Bf5 {[%clk 00:06:57]} {[%emt
00:00:04]} 15. Bxd4 {[%clk 00:04:24]} {[%emt 00:01:21]} Re8+ {[%clk 00:05:06]}
{[%emt 00:01:57]} 16. Be3 {[%clk 00:03:13]} {[%emt 00:01:17]} Bxc2 {[%clk
00:04:50]} {[%emt 00:00:21]} 17. O-O {[%clk 00:03:10]} {[%emt 00:00:08]} Bd6
{[%clk 00:03:30]} {[%emt 00:01:25]} 18. Nd2 {[%clk 00:02:53]} {[%emt 00:00:22]}
Bd3 {[%clk 00:02:49]} {[%emt 00:00:45]} 19. Rfe1 {[%clk 00:02:21]} {[%emt
00:00:37]} Kf7 {[%clk 00:02:19]} {[%emt 00:00:36]} 20. Bd4 {[%clk 00:02:18]}
{[%emt 00:00:07]} c5 {[%clk 00:01:54]} {[%emt 00:00:31]} 21. Bc3 {[%clk
00:02:05]} {[%emt 00:00:18]} b5 {[%clk 00:01:57]} {[%emt 00:00:02]} 22. Nf3
{[%clk 00:02:07]} {[%emt 00:00:02]} c4 {[%clk 00:00:56]} {[%emt 00:01:06]} 23.
Ne5+ {[%clk 00:02:01]} {[%emt 00:00:11]} Bxe5 {[%clk 00:00:59]} {[%emt
00:00:02]} 24. Bxe5 {[%clk 00:02:00]} {[%emt 00:00:05]} Re6 {[%clk 00:00:53]}
{[%emt 00:00:11]} 25. Bd4 {[%clk 00:02:00]} {[%emt 00:00:04]} Rxe1+ {[%clk
00:00:41]} {[%emt 00:00:18]} 26. Rxe1 {[%clk 00:02:04]} {[%emt 00:00:01]} a6
{[%clk 00:00:29]} {[%emt 00:00:18]} 27. f3 {[%clk 00:01:28]} {[%emt 00:00:41]}
Rd8 {[%clk 00:00:32]} {[%emt 00:00:02]} 28. Bc3 {[%clk 00:01:31]} {[%emt
00:00:02]} g5 {[%clk 00:00:22]} {[%emt 00:00:14]} 29. Kf2 {[%clk 00:01:34]}
{[%emt 00:00:02]} Bf5 {[%clk 00:00:20]} {[%emt 00:00:07]} 30. Re5 {[%clk
00:01:27]} {[%emt 00:00:11]} Be6 {[%clk 00:00:19]} {[%emt 00:00:06]} 31. Rc5
{[%clk 00:01:24]} {[%emt 00:00:08]} Rd6 {[%clk 00:00:09]} {[%emt 00:00:16]} 32.
Bb4 {[%clk 00:01:20]} {[%emt 00:00:09]} Rd5 {[%clk 00:00:08]} {[%emt 00:00:06]}
33. Rc6 {[%clk 00:01:07]} {[%emt 00:00:18]} Bf5 {[%clk 00:00:07]} {[%emt
00:00:06]} 34. Rxa6 {[%clk 00:01:03]} {[%emt 00:00:09]} Be6 {[%clk 00:00:11]}
{[%emt 00:00:01]} 35. Ra7+ {[%clk 00:00:56]} {[%emt 00:00:11]} Kg6 {[%clk
00:00:15]} {[%emt 00:00:01]} 36. Bc3 {[%clk 00:01:00]} {[%emt 00:00:02]} Rd7
{[%clk 00:00:17]} {[%emt 00:00:02]} 37. Ra6 {[%clk 00:00:57]} {[%emt 00:00:08]}
Kf7 {[%clk 00:00:21]} {[%emt 00:00:01]} 38. Rb6 {[%clk 00:00:56]} {[%emt
00:00:06]} Rd5 {[%clk 00:00:24]} {[%emt 00:00:02]} 39. Ke3 {[%clk 00:00:53]}
{[%emt 00:00:07]} Ke7 {[%clk 00:00:24]} {[%emt 00:00:05]} 40. Bb4+ {[%clk
00:00:47]} {[%emt 00:00:12]} Kf7 {[%clk 00:00:28]} 41. Rb7+ {[%clk 00:00:50]}
{[%emt 00:00:01]} Kg6 {[%clk 00:00:29]} {[%emt 00:00:04]} 42. Bc3 {[%clk
00:00:47]} {[%emt 00:00:08]} h5 {[%clk 00:00:30]} {[%emt 00:00:04]} 43. Re7
{[%clk 00:00:37]} {[%emt 00:00:15]} Bf5 {[%clk 00:00:21]} {[%emt 00:00:14]} 44.
Re5 {[%clk 00:00:25]} {[%emt 00:00:18]} Rxe5+ {[%clk 00:00:22]} {[%emt
00:00:03]} 45. Bxe5 {[%clk 00:00:29]} Bb1 {[%clk 00:00:26]} {[%emt 00:00:02]}
46. a3 {[%clk 00:00:33]} Kf5 {[%clk 00:00:21]} {[%emt 00:00:09]} 47. Bg3 {[%clk
00:00:17]} {[%emt 00:00:21]} g4 {[%clk 00:00:23]} {[%emt 00:00:03]} 48. fxg4+
{[%clk 00:00:19]} {[%emt 00:00:04]} hxg4 {[%clk 00:00:26]} {[%emt 00:00:01]} 49.
h3 {[%clk 00:00:21]} {[%emt 00:00:02]} gxh3 {[%clk 00:00:30]} {[%emt 00:00:02]}
50. gxh3 {[%emt 00:00:02]} Kg6 {[%clk 00:00:31]} {[%emt 00:00:03]} 51. Kd4
{[%clk 00:00:29]} {[%emt 00:00:01]} Bc2 {[%clk 00:00:32]} {[%emt 00:00:04]} 52.
Kc5 {[%clk 00:00:31]} {[%emt 00:00:04]} Ba4 {[%clk 00:00:35]} {[%emt 00:00:03]}
53. Bf2 {[%clk 00:00:19]} {[%emt 00:00:16]} 1/2-1/2

[Event "Kvibergspelen September 2019"]
[Site "Prioritet Serneke Arena, Krutvagen 2, Gothenburg, Sweden"]
[Date "2019.09.27"]
[Round "3.9"]
[White "Akesson, Ralf"]
[Black "Nygren, Kim"]
[Result "1/2-1/2"]
[TimeControl "15 minutes + 5 seconds per move from move one (Round 1 - 4) / 90 minutes + 30 seconds per move from move one (Round 5 - 8)"]
[WhiteTitle "GM"]
[WhiteFideId "1700120"]
[BlackFideId "1706136"]
[WhiteElo "2367"]
[BlackElo "2171"]

1. d4 {[%clk 00:15:09]} Nf6 {[%clk 00:12:44]} {[%emt 00:02:27]} 2. Nf3 {[%clk
00:14:57]} {[%emt 00:00:16]} e6 {[%clk 00:12:46]} {[%emt 00:00:03]} 3. c4
{[%clk 00:15:00]} {[%emt 00:00:02]} b6 {[%clk 00:12:50]} {[%emt 00:00:02]} 4.
g3 {[%clk 00:14:59]} {[%emt 00:00:05]} Ba6 {[%clk 00:12:53]} {[%emt 00:00:02]}
5. b3 {[%clk 00:14:31]} {[%emt 00:00:33]} Bb4+ {[%clk 00:12:56]} {[%emt
00:00:02]} 6. Bd2 {[%clk 00:14:35]} {[%emt 00:00:01]} Be7 {[%clk 00:12:59]}
{[%emt 00:00:02]} 7. Nc3 {[%clk 00:14:26]} {[%emt 00:00:14]} d5 {[%clk
00:12:46]} {[%emt 00:00:17]} 8. cxd5 {[%clk 00:14:18]} {[%emt 00:00:13]} Nxd5
{[%clk 00:12:42]} {[%emt 00:00:09]} 9. Bg2 {[%clk 00:13:56]} {[%emt 00:00:27]}
O-O {[%clk 00:12:33]} {[%emt 00:00:15]} 10. O-O {[%clk 00:13:56]} {[%emt
00:00:05]} Nd7 {[%clk 00:12:09]} {[%emt 00:00:28]} 11. Re1 {[%clk 00:13:51]}
{[%emt 00:00:09]} Nxc3 {[%clk 00:12:01]} {[%emt 00:00:13]} 12. Bxc3 {[%clk
00:13:55]} {[%emt 00:00:02]} Rc8 {[%clk 00:12:01]} {[%emt 00:00:05]} 13. b4
{[%clk 00:13:10]} {[%emt 00:00:50]} Bb7 {[%clk 00:11:43]} {[%emt 00:00:23]} 14.
Qa4 {[%clk 00:12:23]} {[%emt 00:00:52]} a6 {[%clk 00:11:45]} {[%emt 00:00:03]}
15. Rab1 {[%clk 00:12:00]} {[%emt 00:00:28]} Be4 {[%clk 00:10:38]} {[%emt
00:01:12]} 16. Rbc1 {[%clk 00:11:54]} {[%emt 00:00:11]} Ra8 {[%clk 00:10:25]}
{[%emt 00:00:19]} 17. Red1 {[%clk 00:11:17]} {[%emt 00:00:42]} b5 {[%clk
00:10:22]} {[%emt 00:00:08]} 18. Qb3 {[%clk 00:11:18]} {[%emt 00:00:04]} Nb6
{[%clk 00:10:21]} {[%emt 00:00:06]} 19. Ne5 {[%clk 00:10:33]} {[%emt 00:00:50]}
Bxg2 {[%clk 00:10:23]} {[%emt 00:00:03]} 20. Kxg2 {[%clk 00:10:36]} {[%emt
00:00:01]} Bd6 {[%clk 00:10:26]} {[%emt 00:00:02]} 21. Nc6 {[%clk 00:10:34]}
{[%emt 00:00:06]} Qg5 {[%clk 00:10:29]} {[%emt 00:00:02]} 22. Bd2 {[%clk
00:10:30]} {[%emt 00:00:09]} Qh5 {[%clk 00:09:57]} {[%emt 00:00:37]} 23. e4
{[%clk 00:10:20]} {[%emt 00:00:15]} Rfe8 {[%clk 00:09:20]} {[%emt 00:00:42]} 24.
Na5 {[%clk 00:09:38]} {[%emt 00:00:47]} Rac8 {[%clk 00:09:04]} {[%emt
00:00:21]} 25. a3 {[%clk 00:09:17]} {[%emt 00:00:26]} h6 {[%clk 00:09:07]}
{[%emt 00:00:02]} 26. Qd3 {[%clk 00:08:54]} {[%emt 00:00:28]} f5 {[%clk
00:08:57]} {[%emt 00:00:15]} 27. f3 {[%clk 00:08:34]} {[%emt 00:00:25]} g5
{[%clk 00:08:05]} {[%emt 00:00:57]} 28. Re1 {[%clk 00:08:17]} {[%emt 00:00:21]}
g4 {[%clk 00:07:44]} {[%emt 00:00:27]} 29. fxg4 {[%clk 00:07:40]} {[%emt
00:00:41]} fxg4 {[%clk 00:07:30]} {[%emt 00:00:18]} 30. Rf1 {[%clk 00:07:37]}
{[%emt 00:00:09]} Rf8 {[%clk 00:07:28]} {[%emt 00:00:07]} 31. Qe3 {[%clk
00:07:02]} {[%emt 00:00:39]} Qh3+ {[%clk 00:06:09]} {[%emt 00:01:24]} 32. Kg1
{[%clk 00:07:06]} {[%emt 00:00:01]} Rf3 {[%clk 00:06:12]} {[%emt 00:00:01]} 33.
Rxf3 {[%clk 00:06:53]} {[%emt 00:00:18]} gxf3 {[%clk 00:06:16]} {[%emt
00:00:02]} 34. Qxf3 {[%clk 00:06:44]} {[%emt 00:00:14]} Rf8 {[%clk 00:06:18]}
{[%emt 00:00:02]} 35. Qe2 {[%clk 00:05:59]} {[%emt 00:00:49]} e5 {[%clk
00:05:41]} {[%emt 00:00:42]} 36. d5 {[%clk 00:05:52]} {[%emt 00:00:12]} Nd7
{[%clk 00:04:41]} {[%emt 00:01:05]} 37. Nb3 {[%clk 00:05:10]} {[%emt 00:00:47]}
Nf6 {[%clk 00:04:09]} {[%emt 00:00:38]} 38. Nc5 {[%clk 00:05:11]} {[%emt
00:00:04]} Bxc5+ {[%clk 00:03:56]} {[%emt 00:00:17]} 39. bxc5 {[%clk 00:05:08]}
{[%emt 00:00:08]} Ng4 {[%clk 00:04:00]} {[%emt 00:00:02]} 40. Be3 {[%clk
00:05:01]} {[%emt 00:00:13]} h5 {[%clk 00:02:57]} {[%emt 00:01:08]} 41. d6
{[%clk 00:04:39]} {[%emt 00:00:26]} h4 {[%clk 00:02:51]} {[%emt 00:00:11]} 42.
gxh4 {[%clk 00:01:39]} {[%emt 00:03:05]} Nxe3 {[%clk 00:02:54]} {[%emt
00:00:02]} 43. Kh1 {[%clk 00:01:38]} {[%emt 00:00:06]} Nf1 {[%clk 00:01:34]}
{[%emt 00:01:24]} 44. Rc3 {[%clk 00:00:54]} {[%emt 00:00:49]} Ne3 {[%clk
00:00:30]} {[%emt 00:01:09]} 45. Rc1 {[%clk 00:00:58]} {[%emt 00:00:01]} Nf1
{[%clk 00:00:22]} {[%emt 00:00:13]} 46. Rc3 {[%clk 00:01:02]} {[%emt 00:00:01]}
Qxc3 {[%clk 00:00:10]} {[%emt 00:00:18]} 47. Qg4+ {[%clk 00:01:04]} {[%emt
00:00:02]} Kf7 {[%clk 00:00:09]} {[%emt 00:00:05]} 48. Qf5+ {[%clk 00:01:07]}
{[%emt 00:00:03]} Kg7 {[%clk 00:00:13]} {[%emt 00:00:01]} 49. Qg5+ {[%clk
00:01:10]} {[%emt 00:00:01]} 1/2-1/2

[Event "Kvibergspelen September 2019"]
[Site "Prioritet Serneke Arena, Krutvagen 2, Gothenburg, Sweden"]
[Date "2019.09.27"]
[Round "3.10"]
[White "Muntean, Victor"]
[Black "Bellon Lopez, Juan"]
[Result "1-0"]
[TimeControl "15 minutes + 5 seconds per move from move one (Round 1 - 4) / 90 minutes + 30 seconds per move from move one (Round 5 - 8)"]
[BlackTitle "GM"]
[WhiteFideId "1054414"]
[BlackFideId "2200031"]
[WhiteElo "2020"]
[BlackElo "2334"]

1. e4 {[%clk 00:15:08]} c5 {[%clk 00:15:07]} 2. c3 {[%clk 00:15:11]} {[%emt
00:54:08]} Qa5 {[%clk 00:14:59]} {[%emt 00:00:17]} 3. Nf3 {[%clk 00:14:58]}
{[%emt 00:00:17]} e6 {[%clk 00:15:01]} {[%emt 00:00:02]} 4. Be2 {[%clk
00:14:20]} {[%emt 00:00:44]} d6 {[%clk 00:14:49]} {[%emt 00:00:17]} 5. O-O
{[%clk 00:14:18]} {[%emt 00:00:07]} Nf6 {[%clk 00:14:53]} 6. e5 {[%clk
00:13:28]} {[%emt 00:00:55]} dxe5 {[%clk 00:14:57]} {[%emt 00:00:01]} 7. Nxe5
{[%clk 00:13:29]} {[%emt 00:00:03]} Qc7 {[%clk 00:14:58]} {[%emt 00:00:03]} 8.
d4 {[%clk 00:13:24]} {[%emt 00:00:10]} Nbd7 {[%clk 00:14:54]} {[%emt 00:00:09]}
9. Bf4 {[%clk 00:12:39]} {[%emt 00:00:50]} Bd6 {[%clk 00:14:55]} {[%emt
00:00:05]} 10. Re1 {[%clk 00:12:16]} {[%emt 00:00:28]} O-O {[%clk 00:14:50]}
{[%emt 00:00:09]} 11. Bd3 {[%clk 00:11:42]} {[%emt 00:00:39]} g6 {[%clk
00:14:25]} {[%emt 00:00:31]} 12. Na3 {[%clk 00:11:26]} {[%emt 00:00:21]} a6
{[%clk 00:13:14]} {[%emt 00:01:16]} 13. Nac4 {[%clk 00:11:11]} {[%emt
00:00:20]} Nh5 {[%clk 00:13:15]} {[%emt 00:00:03]} 14. Bh6 {[%clk 00:09:26]}
{[%emt 00:01:50]} Rd8 {[%clk 00:13:13]} {[%emt 00:00:07]} 15. Nxd6 {[%clk
00:08:09]} {[%emt 00:01:23]} Qxd6 {[%clk 00:13:10]} {[%emt 00:00:07]} 16. Qf3
{[%clk 00:08:01]} {[%emt 00:00:13]} Nxe5 {[%clk 00:12:34]} {[%emt 00:00:42]} 17.
Rxe5 {[%clk 00:07:59]} {[%emt 00:00:06]} f5 {[%clk 00:11:20]} {[%emt 00:01:19]}
18. Rxc5 {[%clk 00:07:24]} {[%emt 00:00:40]} Nf6 {[%clk 00:11:22]} {[%emt
00:00:02]} 19. Bf4 {[%clk 00:06:39]} {[%emt 00:00:50]} Qf8 {[%clk 00:11:07]}
{[%emt 00:00:20]} 20. Bc4 {[%clk 00:06:21]} {[%emt 00:00:23]} Nd5 {[%clk
00:10:26]} {[%emt 00:00:46]} 21. Bxd5 {[%clk 00:05:48]} {[%emt 00:00:38]} exd5
{[%clk 00:10:30]} 22. Rxd5 {[%clk 00:05:19]} {[%emt 00:00:34]} Be6 {[%clk
00:10:13]} {[%emt 00:00:22]} 23. Re5 {[%clk 00:05:08]} {[%emt 00:00:16]} Qf7
{[%clk 00:10:12]} {[%emt 00:00:06]} 24. Rae1 {[%clk 00:04:38]} {[%emt
00:00:35]} Bd5 {[%clk 00:10:03]} {[%emt 00:00:14]} 25. Qe3 {[%clk 00:04:31]}
{[%emt 00:00:12]} Bc6 {[%clk 00:09:14]} {[%emt 00:00:53]} 26. d5 {[%clk
00:03:57]} {[%emt 00:00:40]} Rxd5 {[%clk 00:08:29]} {[%emt 00:00:50]} 27. Re7
{[%clk 00:03:57]} {[%emt 00:00:04]} Qf6 {[%clk 00:08:24]} {[%emt 00:00:09]} 28.
c4 {[%clk 00:02:47]} {[%emt 00:01:17]} Rdd8 {[%clk 00:06:39]} {[%emt 00:01:50]}
29. Bg5 {[%clk 00:01:35]} {[%emt 00:01:16]} f4 {[%clk 00:05:43]} {[%emt
00:01:02]} 30. Qh3 {[%clk 00:01:32]} {[%emt 00:00:08]} Qh8 {[%clk 00:05:07]}
{[%emt 00:00:41]} 31. Qe6+ {[%clk 00:01:32]} {[%emt 00:00:05]} 1-0